Cogmind - Beta 15 @@@ ROGUE MODE // 2025.08.04 @ 19:00:14 Player: the Result: Destroyed by Dirty Bomb Trap Performance ------------- Evolutions (5) 2500 Regions Visited (11) 2200 Robots Destroyed (141) 705 Value Destroyed (3864) 3864 Prototype IDs (10) 200 Alien Tech Used (0) 0 Bonus (1118) 1118 TOTAL SCORE: 10587 Bonus ------- High Alert Combat Kills 24 Follower Combat Kills 294 Entered DSFs 500 Acquired ECA 300 Cogmind --------- Core Integrity 0/1000 Matter 265/300 Energy 98/100 System Corruption 12% Temperature Cool (0) Movement Core (50) Location -5/Upper Caves Parts ------- > --- POWER (1) -------- (None) > --- PROPULSION (6) --- (None) > --- UTILITY (7) ------ Encrypted Comm Array > --- WEAPON (3) ------- (None) > --- INVENTORY (5) ---- Micro Fission Core Authchip [Propulsion] Authchip [Weapon] Peak State ------------ > --- POWER ------------ Cold Fusion Reactor > --- PROPULSION ------- Improved Carbon-fiber Leg Armored Leg Armored Leg Armored Leg Armored Leg Armored Leg > --- UTILITY ---------- High-capacity Storage Unit Advanced Sensor Array Advanced Signal Interpreter Improved Melee Analysis Suite Hacking Suite Hacking Suite Hacking Suite > --- WEAPON ----------- Chainsword Chainsword Chainsword > --- INVENTORY -------- Neutrino Core Micro Fission Core Large Storage Unit Structural Scanner Seismic Detector Improved Melee Analysis Suite Microactuators Improved Propulsion Shielding Authchip [Power] Authchip [Power] Authchip [Propulsion] Authchip [Propulsion] Authchip [Propulsion] Authchip [Processor] Authchip [Armor] Authchip [Weapon] Authchip [Weapon] Chainsword Chainsword [Rating: 78] Favorites ----------- Power Improved Ion Engine Engine Improved Ion Engine Power Core Light Nuclear Core Reactor Cold Fusion Reactor Propulsion Light Treads Treads Light Treads Leg Armored Leg Flight Unit Nuclear Pulse Thruster Utility Hacking Suite Device Seismic Detector Storage High-capacity Storage Unit Processor Improved Melee Analysis Suite Hackware Hacking Suite Protection Medium Armor Plating Weapon Minigun Energy Gun Improved Spread Laser Energy Cannon Advanced Beam Cannon Ballistic Gun Minigun Ballistic Cannon Light Cannon Launcher Guided EMP Blaster Special Weapon Mining Laser Slashing Weapon Chainsword Build | -11 -10 -9 -9 -8 -7 -6 -6 -6 -6 -5 -5 ------- Run | Yrd Mat Mat Sto Mat Fac Fac Was Fac DSF Fac Upp Slots Evolved 10 | . . 2 . 2 2 2 . . . 2 . Power . | . . . . . . . . . . . . Propulsion 4 | . . 1 . 1 . 1 . . . 1 . Utility 5 | . . 1 . . 2 1 . . . 1 . Weapon 1 | . . . . 1 . . . . . . . Parts Attached 120 | 8 15 11 16 18 13 11 . 3 14 10 1 Power 13 | 1 2 3 2 2 1 1 . 1 . . . Engine 10 | 1 2 3 2 . 1 1 . . . . . Core 2 | . . . . 2 . . . . . . . Reactor 1 | . . . . . . . . 1 . . . Propulsion 46 | 2 5 4 8 10 1 4 . . 8 4 . Treads 22 | . 5 4 8 5 . . . . . . . Leg 17 | 2 . . . 4 1 1 . . 8 1 . Wheel . | . . . . . . . . . . . . Hover . | . . . . . . . . . . . . Flight 7 | . . . . 1 . 3 . . . 3 . Utility 34 | 3 3 2 2 2 6 6 . 2 1 6 1 Device 14 | 2 2 . 1 1 1 4 . . . 2 1 Storage 6 | 1 1 1 . . 1 . . . 1 1 . Processor 6 | . . 1 . . 1 1 . 1 . 2 . Hackware 3 | . . . . . 2 . . 1 . . . Protection 5 | . . . 1 1 1 1 . . . 1 . Artifact . | . . . . . . . . . . . . Weapon 27 | 2 5 2 4 4 5 . . . 5 . . Energy Gun 7 | 1 . . 1 . 5 . . . . . . Energy Cannon 3 | . . . . 3 . . . . . . . Ballistic Gun 7 | 1 2 2 2 . . . . . . . . Ballistic Cannon 2 | . 2 . . . . . . . . . . Launcher 1 | . . . 1 . . . . . . . . Special Weapon 1 | . 1 . . . . . . . . . . Impact Weapon . | . . . . . . . . . . . . Slashing Weapon 6 | . . . . 1 . . . . 5 . . Piercing Weapon . | . . . . . . . . . . . . Special Melee Weapon . | . . . . . . . . . . . . Unidentified Prototypes 7 | . . . 3 1 1 . . 1 . 1 . Parts Lost 23 | . 3 . 2 . 1 1 2 . . 14 . Power 2 | . . . . . 1 . . . . 1 . Propulsion 9 | . 1 . 1 . . 1 . . . 6 . Utility 9 | . . . . . . . 2 . . 7 . Weapon 3 | . 2 . 1 . . . . . . . . Highest Loss Streak 11 | . 3 . 1 . 1 1 2 . . 11 . To Critical Strikes . | . . . . . . . . . . . . Average Backups 13 | 2 9 10 18 19 13 9 6 4 6 16 3 Power 1 | . 1 1 1 1 1 1 . . . 1 1 Propulsion 4 | . 4 5 7 3 2 . . . . . . Utility 4 | . . . 3 9 7 6 5 4 5 12 2 Weapon 3 | . 2 3 5 4 2 1 . . . 2 . Tool/Special . | . . . . . . . . . . . . Unused Backups 35 | . 5 1 5 1 5 1 1 . 1 12 3 Power 7 | . 1 . 1 . 1 1 . . . 2 1 Propulsion 9 | . 4 1 2 . 1 . . . . 1 . Utility 15 | . . . 2 1 1 . 1 . 1 7 2 Weapon 4 | . . . . . 2 . . . . 2 . Tool/Special . | . . . . . . . . . . . . Average Slot Usage (%) 96 | . 99 99 99 99 99 97 63 51 86 92 1 Engine 8 | . 14 11 11 4 3 5 2 . . . . Treads 19 | . 23 33 32 33 . . . . . . . Leg 10 | . 4 . . 2 30 29 6 . 25 32 . Device 13 | . 14 21 18 15 8 11 16 13 11 4 1 Storage 9 | . 14 11 11 9 7 6 2 . 1 4 . Processor 2 | . . . . . 2 6 5 4 6 10 . Hackware 5 | . . . . . 14 13 13 20 20 15 . Protection 1 | . . . 3 2 2 . . . . . . Energy Gun 3 | . 5 . . . 8 17 5 . . . . Energy Cannon 2 | . . . . 10 12 . . . . . . Ballistic Gun 9 | . 8 18 20 15 . . . . . . . Ballistic Cannon 3 | . 12 3 . . . . . . . . . Slashing Weapon 2 | . . . . . 1 2 4 6 13 15 . Peak Build Rating 78 | 7 10 19 28 36 47 63 61 34 63 78 6 Average Rating 29 | 5 8 17 20 32 41 53 32 28 53 70 2 On Entrance 25 | . 7 8 19 22 31 46 61 21 29 63 1 Naked Turns 48 | . . . . . . . . . . 5 43 Heaviest Build 72 | 15 22 55 62 67 72 42 36 4 42 65 . Greatest Support 98 | 20 40 60 60 80 60 72 59 6 82 98 3 Greatest Overweight (x) 1 | . . . 1 . 1 . 1 . 1 1 . Average Overweight (x) . | . . . . . . . . . . . . Largest Inventory Capacity 20 | 8 10 20 20 20 20 10 10 5 15 20 5 Average Capacity 14 | 7 9 15 20 20 16 10 6 5 7 17 5 Most Carried 20 | 4 10 14 20 20 19 10 10 5 15 20 3 Average Carried 13 | 2 9 10 18 19 13 9 6 4 6 16 3 Final Capacity 20 | 8 10 20 20 20 10 10 5 5 15 5 5 Final Carried 20 | 4 10 13 20 17 10 10 5 5 15 3 3 Class Distribution -------------------- 31% | Mutant 23% | Scavenger-Mutant 9% | Hacker-Gladiator 7% | Scavenger-Skirmisher 5% | Gunner 4% | Scavenger-Gunner 3% | Hacker-Mutant 3% | Commander-Mutant Dominant Class ---------------- Mutant | -10/Materials Mutant | -9/Materials Scavenger-Mutant | -9/Storage Gunner | -8/Materials Scavenger-Skirmisher | -7/Factory Scavenger-Skirmisher | -6/Factory Hacker-Scout | -6/Waste Hacker-Mutant | -6/Factory Hacker-Mutant | -6/DSF Hacker-Gladiator | -5/Factory Mutant | -5/Upper Caves Resources | -11 -10 -9 -9 -8 -7 -6 -6 -6 -6 -5 -5 ----------- Run | Yrd Mat Mat Sto Mat Fac Fac Was Fac DSF Fac Upp Matter Collected 4154 | 319 591 514 1053 845 171 274 . . 287 100 . Remotely 91 | 91 . . . . . . . . . . . Salvage Created 5923 | 148 865 898 1354 900 422 417 . . 72 847 . Parts 328 | 13 50 41 84 57 22 21 . . 6 34 . Haulers Intercepted 15 | . 2 1 5 4 . 1 . . . 2 . Recyclers Shooed 10 | 1 3 . 3 1 . 1 . . . 1 . Parts Field Recycled . | . . . . . . . . . . . . Retrieved Matter . | . . . . . . . . . . . . Parts Self-Destructed . | . . . . . . . . . . . . Prevented . | . . . . . . . . . . . . Kills | -11 -10 -9 -9 -8 -7 -6 -6 -6 -6 -5 -5 ------- Run | Yrd Mat Mat Sto Mat Fac Fac Was Fac DSF Fac Upp Combat Hostiles Destroyed 81 | . 13 13 17 14 7 6 . . 1 10 . Melee 13 | . . . 1 1 . . . . 1 10 . Guns 55 | . 9 13 16 11 2 4 . . . . . Cannons 9 | . 3 . . 1 5 . . . . . . AOE 3 | . 1 . . . . 2 . . . . . Classes Destroyed 14 | 2 7 1 . 1 1 1 . . 1 . . Worker 8 | . 4 . 1 1 . . . . . 2 . Builder 5 | . 2 . . . 1 1 . . . 1 . Tunneler 6 | 4 . . . . 1 . . . . 1 . Hauler 15 | . 2 1 5 4 . 1 . . . 2 . Recycler 14 | 1 3 2 4 2 . 1 . . . 1 . Operator 5 | . 1 1 1 1 . 1 . . . . . Watcher 6 | . 3 2 1 . . . . . . . . Swarmer 11 | . 3 . 1 3 . . . . . 4 . Grunt 43 | . 10 8 10 7 1 3 . . . 4 . Duelist 1 | . . . . . . 1 . . . . . Sentry 20 | . . 5 7 3 5 . . . . . . Specialist 1 | . . . . . . . . . 1 . . Hunter 1 | . . . . 1 . . . . . . . Programmer 5 | . . . . . 1 2 . . . 2 . Best Kill Streak 7 | 2 6 5 4 5 2 4 . . 1 7 . Combat Bots Only 7 | . 3 4 3 5 2 4 . . 1 7 . Max Kills in Single Turn 3 | 1 3 1 1 2 1 2 . . 1 1 . Gunslinging . | . . . . . . . . . . . . Exploded 2 | . 1 . . . . 2 . . . . . Melee 1 | . . . 1 1 . . . . 1 1 . Uniques/NPCs Destroyed . | . . . . . . . . . . . . Combat | -11 -10 -9 -9 -8 -7 -6 -6 -6 -6 -5 -5 -------- Run | Yrd Mat Mat Sto Mat Fac Fac Was Fac DSF Fac Upp Hostile Shots Fired 858 | . 77 58 62 168 156 28 3 . 13 290 3 Missed 299 | . 21 14 20 46 69 11 2 . 4 110 2 Hits 559 | . 56 44 42 122 87 17 1 . 9 180 1 Melee 2 | . . . . . . 1 1 . . . . Projectile 557 | . 56 44 42 122 87 16 . . 9 180 1 AOE 2 | . . . . . . . . . . 2 . Critical Strikes 11 | . . . 1 3 1 1 . . . 5 . Part Disruptions 2 | . . . . . . . . . . 2 . Damage Taken 7996 | . 685 588 611 1470 674 319 33 . 217 3320 79 Core 1670 | . 167 82 82 98 60 38 9 . 125 930 79 Absorbed by Shields . | . . . . . . . . . . . . Redirected to Shielding 100 | . . . . . . . . . . 100 . Ignored by Resistances 144 | . . . . 144 . . . . . . . Regen/Repaired (Parts) 275 | . . . 71 . . 204 . . . . . Core Remaining (%) 74 | 100 33 . 59 82 91 . . . 79 . . Volleys Fired 357 | 13 108 49 90 64 18 15 . . . . . Largest 3 | 2 2 2 2 3 3 3 . . . . . Hottest 225 | 70 100 50 100 204 225 225 . . . . . Shots Fired 764 | 25 187 98 164 192 53 45 . . . . . Gun 612 | 25 133 98 150 153 8 45 . . . . . Cannon 111 | . 27 . . 39 45 . . . . . . Launcher . | . . . . . . . . . . . . Special 41 | . 27 . 14 . . . . . . . . Kinetic 547 | 13 133 98 150 153 . . . . . . . Thermal 217 | 12 54 . 14 39 53 45 . . . . . Explosive . | . . . . . . . . . . . . Electromagnetic . | . . . . . . . . . . . . Robot Hit Streak 16 | 6 16 9 13 8 15 10 . . . . . Robot Miss Streak 8 | 3 8 4 4 7 3 4 . . . . . Penetration Max . | . . . . . . . . . . . . Secondary Targets 10 | . . 3 1 4 1 1 . . . . . Max Gunslinging Chain 1 | . . 1 1 1 1 1 . . . . . Shots Hit Robots 498 | 14 96 61 86 109 45 40 . . 2 45 . Core Hits 244 | 6 42 25 37 35 24 52 . . 1 22 . Critical Kills 4 | . 1 1 1 1 . . . . . . . Critical Parts Destroyed 2 | . . . 2 . . . . . . . . Critical Strikes 11 | . 3 1 3 1 . . . . . 3 . Burn 1 | . 1 . . . . . . . . . . Meltdown 1 | . . . . 1 . . . . . . . Destroy 5 | . 1 1 3 . . . . . . . . Blast 1 | . 1 . . . . . . . . . . Sever 3 | . . . . . . . . . . 3 . Melee Attacks 89 | . . . . 1 6 13 . 1 2 66 . Impact . | . . . . . . . . . . . . Slashing 89 | . . . . 1 6 13 . 1 2 66 . Piercing . | . . . . . . . . . . . . Sneak Attacks 14 | . . . . . 2 1 . . . 11 . Combat Hostiles . | . . . . . . . . . . . . Follow-up Attacks 17 | . . . . . . . . . . 17 . Damage Inflicted 11094 | 177 1743 1068 1526 2106 1047 1268 . . 66 2093 . Guns 6510 | 177 1075 1068 1512 1555 205 918 . . . . . Cannons 1477 | . 227 . . 532 718 . . . . . . Explosions 700 | . 438 . . . . 262 . . . . . Melee 2344 | . . . . . 124 61 . . 66 2093 . Ramming 63 | . 3 . 14 19 . 27 . . . . . Kinetic 5324 | 100 1089 1068 1512 1555 . . . . . . . Thermal 3363 | 77 651 . . 532 923 1180 . . . . . Explosive . | . . . . . . . . . . . . Electromagnetic . | . . . . . . . . . . . . Impact . | . . . . . . . . . . . . Slashing 2344 | . . . . . 124 61 . . 66 2093 . Piercing . | . . . . . . . . . . . . Highest Corruption 12 | . . . . 3 2 1 11 11 11 12 12 Average Corruption 5 | . . . . 2 2 1 9 11 11 8 12 Corruption Purged . | . . . . . . . . . . . . Corruption Blocked . | . . . . . . . . . . . . Effects 28 | . . . . . . 4 5 . 11 6 2 Message Errors 7 | . . . . . . . 1 . 5 . 1 Matter Fused 7 | . . . . . . 1 3 . 1 2 . Heat Flow Errors 3 | . . . . . . 1 . . 1 1 . Energy Discharges 4 | . . . . . . 1 . . 1 1 1 Parts Rejected 1 | . . . . . . . . . . 1 . Parts Fused 2 | . . . . . . . . . 2 . . Data Loss (minor) 1 | . . . . . . 1 . . . . . Data Loss (major) 2 | . . . . . . . 1 . 1 . . Misdirections 1 | . . . . . . . . . . 1 . Overload Shots . | . . . . . . . . . . . . Overflow Damage 367 | . 84 . . . 54 . . . . 229 . Projectiles 5 | . 5 . . . . . . . . . . Explosions 79 | . 79 . . . . . . . . . . Melee 283 | . . . . . 54 . . . . 229 . Knockbacks . | . . . . . . . . . . . . Impact . | . . . . . . . . . . . . Kinetic . | . . . . . . . . . . . . Secondary . | . . . . . . . . . . . . Self-Inflicted Damage 82 | . 82 . . . . . . . . . . Shots 1 | . 1 . . . . . . . . . . Rammed 5 | . 1 . 2 2 . . . . . . . Targets Rammed 13 | . 1 . 3 4 . 5 . . . . . Kicked 5 | . . . . . . 5 . . . . . Crushed 3 | . . . 1 2 . . . . . . . Highest Temperature 304 | 45 220 4 7 304 268 270 . . 117 88 . Average Temperature 66 | 16 59 4 3 49 106 100 . . 35 33 . Received Heat Transfer 2031 | . 249 204 216 606 171 90 . . . 495 . Effects 1 | . 1 . . . . . . . . . . Energy Bleed 1 | . 1 . . . . . . . . . . Siege Activations . | . . . . . . . . . . . . Martial Activations . | . . . . . . . . . . . . Shielding Activations . | . . . . . . . . . . . . Robots Disrupted . | . . . . . . . . . . . . Combat Hostiles . | . . . . . . . . . . . . Robots Corrupted . | . . . . . . . . . . . . Combat Hostiles . | . . . . . . . . . . . . Parts Fried . | . . . . . . . . . . . . Impact Corruptions . | . . . . . . . . . . . . Robots Melted 1 | . . . . 1 . . . . . . . Combat Hostiles 1 | . . . . 1 . . . . . . . Parts Melted 9 | . . . 1 2 4 2 . . . . . Heat Transferred 4482 | 222 953 . . 962 1455 890 . . . . . Parts Sabotaged . | . . . . . . . . . . . . Parts Stolen . | . . . . . . . . . . . . Parts Stripped . | . . . . . . . . . . . . Power Chain Reactions . | . . . . . . . . . . . . Alert | -11 -10 -9 -9 -8 -7 -6 -6 -6 -6 -5 -5 ------- Run | Yrd Mat Mat Sto Mat Fac Fac Was Fac DSF Fac Upp Maximum Alert Level 2 | . . 1 2 . . . . . . . . Low Security (%) 85 | 100 100 87 37 100 100 100 100 100 100 100 . Level 1 14 | . . 12 60 . . . . . . . . Level 2 . | . . . 2 . . . . . . . . Level 3 . | . . . . . . . . . . . . Level 4 . | . . . . . . . . . . . . Level 5 . | . . . . . . . . . . . . High Security . | . . . . . . . . . . . . Max Security . | . . . . . . . . . . . . Sterilizations 1 | . . . . . . . . . 1 . . Peak Influence 437 | 10 160 233 437 160 51 150 48 1 35 152 . Initial 113 | . . 11 87 113 13 20 48 . . 18 . Average 88 | 1 66 99 231 63 13 21 24 . 30 24 . Influence Increases 3419 | 25 526 399 1082 505 215 282 . 1 35 304 45 Destroy 0b10 Robot/C 1860 | . 260 260 560 300 140 120 . . 20 200 . Destroy 0b10 Robot/NC 300 | 25 75 30 65 40 10 20 . . . 35 . Destroy Leader 512 | . 60 86 172 78 60 32 . . . 24 . Allied During Kill 189 | . . . 184 5 . . . . . . . Successful Hack 118 | . 29 5 31 17 . 16 . . . 20 . Disable Machine 180 | . 30 15 60 15 . 60 . . . . . Destroy Structure 110 | . 42 3 10 5 5 34 . 1 . 10 . Lose Combat Pursuer 150 | . 30 . . 45 . . . . 15 15 45 Influence Decreases 3384 | 25 497 219 1022 744 203 186 138 1 . 314 35 Entered New Map 452 | . . 18 122 156 17 22 90 . . 17 10 Time Decay 2234 | 25 467 201 580 398 186 154 40 1 . 157 25 Lost Part 208 | . 30 . 20 . . 10 8 . . 140 . Lost Ally 190 | . . . 150 40 . . . . . . . Purge Threat 300 | . . . 150 150 . . . . . . . Squads Dispatched 19 | . 1 2 2 4 2 3 . . 2 3 . Investigation 3 | . . 1 1 . . . . . . 1 . Extermination 5 | . . . . . 2 2 . . . 1 . Reinforcement 7 | . 1 1 1 1 . . . . 2 1 . Assault . | . . . . . . . . . . . . Garrison 4 | . . . . 3 . 1 . . . . . Intercept . | . . . . . . . . . . . . Searches Triggered . | . . . . . . . . . . . . Construction Impeded . | . . . . . . . . . . . . Haulers Reinforced . | . . . . . . . . . . . . Active Scanning Responses . | . . . . . . . . . . . . Cargo Convoy Interrupts 1 | . . . . . . . . . . 1 . Stealth | -11 -10 -9 -9 -8 -7 -6 -6 -6 -6 -5 -5 --------- Run | Yrd Mat Mat Sto Mat Fac Fac Was Fac DSF Fac Upp Distress Signals 10 | . 1 1 3 4 . . . . . 1 . Communications Jammed . | . . . . . . . . . . . . Distress Signals . | . . . . . . . . . . . . Times Spotted 180 | . 26 25 32 26 7 7 6 . 7 41 3 Peak Tracking Total 24 | . 4 7 4 8 2 4 6 . 5 24 3 Tactical Retreats 10 | . 2 . . 3 . . . . 2 1 2 Traps | -11 -10 -9 -9 -8 -7 -6 -6 -6 -6 -5 -5 ------- Run | Yrd Mat Mat Sto Mat Fac Fac Was Fac DSF Fac Upp Traps Triggered 8 | . . 1 1 2 . 1 . . 1 1 1 Indirectly . | . . . . . . . . . . . . Trap Hack Attempts . | . . . . . . . . . . . . Triggered . | . . . . . . . . . . . . Disarmed . | . . . . . . . . . . . . Reprogrammed . | . . . . . . . . . . . . Reused . | . . . . . . . . . . . . Traps Extracted . | . . . . . . . . . . . . Installed . | . . . . . . . . . . . . Triggered . | . . . . . . . . . . . . Machines | -11 -10 -9 -9 -8 -7 -6 -6 -6 -6 -5 -5 ---------- Run | Yrd Mat Mat Sto Mat Fac Fac Was Fac DSF Fac Upp Machines Disabled 13 | . 2 2 4 1 . 4 . . . . . Max in Single Turn 3 | . 2 1 1 1 . 3 . . . . . Garrison Access 1 | . . . . . . 1 . . . . . Machines Repaired . | . . . . . . . . . . . . Machines Dismantled . | . . . . . . . . . . . . Machines Sabotaged . | . . . . . . . . . . . . Overloaded Fab Kills . | . . . . . . . . . . . . Hacking | -11 -10 -9 -9 -8 -7 -6 -6 -6 -6 -5 -5 --------- Run | Yrd Mat Mat Sto Mat Fac Fac Was Fac DSF Fac Upp Machines Accessed 41 | . 9 2 10 3 1 9 . 1 . 6 . Terminals 33 | . 8 1 9 3 1 4 . 1 . 6 . Fabricators . | . . . . . . . . . . . . Repair Stations 4 | . . . 1 . . 3 . . . . . Recycling Units 2 | . 1 1 . . . . . . . . . Scanalyzers 1 | . . . . . . 1 . . . . . Garrison Access 1 | . . . . . . 1 . . . . . Total Hacks 110 | . 26 7 28 9 2 22 . 2 . 14 . Successful 46 | . 11 3 9 5 1 12 . 1 . 4 . Failed 64 | . 15 4 19 4 1 10 . 1 . 10 . Catastrophic 11 | . 5 . . . . 2 . . . 4 . Database Lockouts . | . . . . . . . . . . . . Manual 38 | . 14 . 9 4 1 6 . . . 4 . Terminals 87 | . 24 5 24 9 2 7 . 2 . 14 . Fabricators . | . . . . . . . . . . . . Repair Stations 11 | . . . 4 . . 7 . . . . . Recycling Units 4 | . 2 2 . . . . . . . . . Scanalyzers 5 | . . . . . . 5 . . . . . Garrison Access 3 | . . . . . . 3 . . . . . Terminal Hacks 26 | . 6 2 7 4 1 1 . 1 . 4 . Part Schematic 3 | . . . 2 . . 1 . . . . . Robot Analysis 5 | . 3 . . . . . . . . 2 . Prototype ID Bank 1 | . 1 . . . . . . . . . . Open Door 2 | . . . 2 . . . . . . . . Open DSF 1 | . . . . . . . . 1 . . . Level Access Points 1 | . . . . 1 . . . . . . . Branch Access Points 1 | . . . . 1 . . . . . . . Terminal Index 1 | . . . . . . . . . . 1 . Fabricator Index 1 | . . . . . . . . . . 1 . Alert Level 1 | . . 1 . . . . . . . . . Unreport Threat 2 | . . . 1 1 . . . . . . . Locate Traps 1 | . . . 1 . . . . . . . . Recall Extermination 1 | . . . . . 1 . . . . . . Hauler Manifests 1 | . . . 1 . . . . . . . . Zone Layout 4 | . 2 1 . 1 . . . . . . . Fabricator Hacks . | . . . . . . . . . . . . Repair Station Hacks 7 | . . . 2 . . 5 . . . . . Scan Component 4 | . . . 1 . . 3 . . . . . Repair 3 | . . . 1 . . 2 . . . . . Recycling Unit Hacks 2 | . 1 1 . . . . . . . . . Retrieve Components 2 | . 1 1 . . . . . . . . . Scanalyzer 5 | . . . . . . 5 . . . . . Insert Component 3 | . . . . . . 3 . . . . . Analyze 2 | . . . . . . 2 . . . . . Garrison Access Hacks 1 | . . . . . . 1 . . . . . Seal Access 1 | . . . . . . 1 . . . . . Unauthorized Hacks 5 | . 4 . . 1 . . . . . . . Terminals 5 | . 4 . . 1 . . . . . . . Botnet 4 | . 3 . . 1 . . . . . . . Operators 1 | . 1 . . . . . . . . . . Fabricators . | . . . . . . . . . . . . Repair Stations . | . . . . . . . . . . . . Recycling Units . | . . . . . . . . . . . . Scanalyzers . | . . . . . . . . . . . . Garrison Access . | . . . . . . . . . . . . Data Cores Recovered . | . . . . . . . . . . . . Used . | . . . . . . . . . . . . Hacking Detections 39 | . 9 1 10 3 1 9 . . . 6 . Full Trace Events 3 | . 1 . 1 . . . . . . 1 . Feedback Events . | . . . . . . . . . . . . Feedback Blocked . | . . . . . . . . . . . . Robot Schematics Acquired . | . . . . . . . . . . . . Robots Built . | . . . . . . . . . . . . Authchips . | . . . . . . . . . . . . Time . | . . . . . . . . . . . . Total Robot Build Rating . | . . . . . . . . . . . . Part Schematics Acquired 5 | . . . 2 . . 3 . . . . . Parts Built . | . . . . . . . . . . . . Authchips . | . . . . . . . . . . . . Time . | . . . . . . . . . . . . Total Part Build Rating . | . . . . . . . . . . . . Parts Repaired 3 | . . . 1 . . 2 . . . . . Time 76 | . . . 38 . . 38 . . . . . Parts Recycled . | . . . . . . . . . . . . Recycled Matter . | . . . . . . . . . . . . Retrieved Matter . | . . . . . . . . . . . . Retrieved Components 10 | . 10 . . . . . . . . . . Parts Scanalyzed 2 | . . . . . . 2 . . . . . Part Schematics Acquired 2 | . . . . . . 2 . . . . . Parts Damaged . | . . . . . . . . . . . . Bothacking | -11 -10 -9 -9 -8 -7 -6 -6 -6 -6 -5 -5 ------------ Run | Yrd Mat Mat Sto Mat Fac Fac Was Fac DSF Fac Upp Used RIF Installer . | . . . . . . . . . . . . Robots Hacked . | . . . . . . . . . . . . Non-combat . | . . . . . . . . . . . . Combat . | . . . . . . . . . . . . Robot Hacks Applied . | . . . . . . . . . . . . Relay Couplers Released . | . . . . . . . . . . . . Fabnet Peak Effective % . | . . . . . . . . . . . . Robots Rewired . | . . . . . . . . . . . . Allies Hacked . | . . . . . . . . . . . . Hacks Repelled . | . . . . . . . . . . . . Allies | -11 -10 -9 -9 -8 -7 -6 -6 -6 -6 -5 -5 -------- Run | Yrd Mat Mat Sto Mat Fac Fac Was Fac DSF Fac Upp Total Allies 10 | . . . 10 . . . . . . . . Largest Group 10 | . . . 10 2 . . . . . . . Highest-Rated Group 88 | . . . 88 16 . . . . . . . Highest-Rated Ally 16 | . . . 16 8 . . . . . . . Initial Warlord ECA Mod 18 | . . . . . . . . . . 9 9 Total Orders 2 | . . . 2 . . . . . . . . EXPLORE 2 | . . . 2 . . . . . . . . Ally Attacks 96 | . . . 83 13 . . . . . . . Total Damage 849 | . . . 761 88 . . . . . . . Kills 13 | . . . 12 1 . . . . . . . Allies Corrupted . | . . . . . . . . . . . . Allies Melted . | . . . . . . . . . . . . Intel | -11 -10 -9 -9 -8 -7 -6 -6 -6 -6 -5 -5 ------- Run | Yrd Mat Mat Sto Mat Fac Fac Was Fac DSF Fac Upp Active Infowar (turns) 6368 | 59 1591 596 1212 701 405 864 107 40 293 500 . Sensors 1898 | . . . . . 269 864 45 40 211 469 . Structural 415 | . . . . . . 118 78 40 129 50 . Seismic 4647 | 59 1591 596 1212 701 136 258 68 . . 26 . Robot Analysis Total 5 | . 3 . . . . . . . . 2 . Derelict Logs Recovered . | . . . . . . . . . . . . Drone Launches 2 | . . . 2 . . . . . . . . Drone Recoveries . | . . . . . . . . . . . . Exploration | -11 -10 -9 -9 -8 -7 -6 -6 -6 -6 -5 -5 ------------- Run | Yrd Mat Mat Sto Mat Fac Fac Was Fac DSF Fac Upp Turns Passed 8217 | 146 1957 598 1796 953 669 864 107 40 293 723 71 Spaces Moved 4501 | 79 1001 245 733 421 389 561 131 75 201 528 137 Core 203 | 4 . . . . . . 2 . 13 47 137 Treads 2185 | . 833 245 733 374 . . . . . . . Legs 1841 | 75 168 . . 47 389 561 14 . 151 436 . Wheels . | . . . . . . . . . . . . Hover . | . . . . . . . . . . . . Flight 272 | . . . . . . . 115 75 37 45 . Fastest Speed 35 | 50 120 160 160 122 115 113 40 40 40 35 50 Average Speed 137 | 116 153 160 182 162 139 115 48 40 107 107 50 Slowest Speed 240 | 120 160 160 240 170 192 116 115 40 190 190 50 Overloaded Moves . | . . . . . . . . . . . . Propulsion Burnouts . | . . . . . . . . . . . . Robots Hopped . | . . . . . . . . . . . . Potential Cave-ins . | . . . . . . . . . . . . Cave-ins Triggered . | . . . . . . . . . . . . Exploration Rate (%) 42 | 6 99 31 94 36 9 18 73 2 93 17 28 Regions Visited 11 Branch Regions 2 Pre-discovered Areas 1 | . . . . . . . . . . . 1 Known Exits Taken 4 | . . 1 . 1 1 . . 1 . . . Unknown Exits Taken 4 | 1 1 . 1 . . . . . . 1 . Scrap Searched . | . . . . . . . . . . . . Spaces Dug 41 | . 16 . 3 1 4 11 . 1 . 5 . Terrain Destroyed 94 | . 43 . 7 1 4 33 . 1 . 5 . Melee 22 | . . . . 1 4 11 . 1 . 5 . Projectile 30 | . 23 . 7 . . . . . . . . AOE 42 | . 20 . . . . 22 . . . . . Terrain Rammed . | . . . . . . . . . . . . Walls Destroyed . | . . . . . . . . . . . . Machines Disabled . | . . . . . . . . . . . . Actions | -11 -10 -9 -9 -8 -7 -6 -6 -6 -6 -5 -5 --------- Run | Yrd Mat Mat Sto Mat Fac Fac Was Fac DSF Fac Upp Total 5743 | 104 1186 377 1023 579 465 718 178 82 274 618 139 Wait 392 | . 23 45 115 25 17 81 32 3 32 18 1 Move 4491 | 78 1000 244 732 420 388 561 130 74 200 527 137 Hop . | . . . . . . . . . . . . Pick Up 100 | 4 18 9 18 19 3 6 . . 13 10 . Fast Attach 54 | 8 1 4 4 2 5 8 2 2 12 5 1 Attach 40 | . 3 3 3 13 3 3 2 1 1 8 . Detach 5 | . . . . . 2 . . 1 1 1 . Swap 102 | . 16 8 36 9 12 17 . . 3 1 . Drop 120 | 1 16 15 19 22 11 9 12 . 10 5 . Fire 357 | 13 108 49 90 64 18 15 . . . . . Melee 66 | . . . . 1 6 13 . 1 2 43 . Ram . | . . . . . . . . . . . . Kick 5 | . . . . . . 5 . . . . . Crush 8 | . 1 . 3 4 . . . . . . . Escape Stasis 2 | . . . 2 . . . . . . . . Rewire . | . . . . . . . . . . . . Trap . | . . . . . . . . . . . . Miscellaneous 1 | . . . 1 . . . . . . . . Route ------- -11/Scrapyard -10/Materials (discovered 6 exits: *Mat x3 / [*Min x2] / [*Sub]) -9/Materials (discovered 2 exits: [*Min] / *Sto) -9/Storage (discovered 2 exits: *Mat / [*Rec]) -8/Materials (discovered 3 exits: *Fac x3) -7/Factory -6/Factory -6/Waste -6/Factory -6/DSF -5/Factory (discovered 3 exits: *Fac x2 / [*Upp]) -5/Upper Caves History --------- Turn | Location | Event 3 | -11/Scrapyard | Discovered new exit (range 16) 147 | -11/Scrapyard | Entered Materials 313 | -10/Materials | Build established: Mutant 396 | -10/Materials | Discovered new exit (range 7) 642 | -10/Materials | Discovered new exit (range 7) 901 | -10/Materials | Discovered new exit (range 3) 972 | -10/Materials | Core integrity fell below 50% 1002 | -10/Materials | Lost 3 parts (1n2w) 1069 | -10/Materials | Discovered new exit (range 12) 1467 | -10/Materials | Discovered new exit (range 12) 1576 | -10/Materials | Discovered new exit (range 11) 2104 | -10/Materials | Entered another Materials area 2104 | -9/Materials | Evolved 2 slots: Propulsion x1, Utility x1 2325 | -9/Materials | Discovered new exit (range 16) 2488 | -9/Materials | Discovered new exit (range 16) 2700 | -9/Materials | Identified exit to Storage 2702 | -9/Materials | Entered Storage 2829 | -9/Storage | Build established: Scavenger-Mutant 3310 | -9/Storage | Used back door to open Recycling access 3310 | -9/Storage | Discovered new exit (range 5) 3330 | -9/Storage | Assisted by bots powering up and referring to "LRC-V3" 3601 | -9/Storage | Discovered new exit (range 14) 3620 | -9/Storage | Lost 6 allies 4305 | -9/Storage | Repaired Minigun 4498 | -9/Storage | Entered Materials 4498 | -8/Materials | Accompanied by 2 allies 4498 | -8/Materials | Evolved 2 slots: Propulsion x1, Weapon x1 4793 | -8/Materials | Identified exit to Factory 4873 | -8/Materials | Garrison activated, responded to threat 5451 | -8/Materials | Entered Factory 5451 | -7/Factory | Evolved 2 slots: Utility x2 6101 | -7/Factory | Discovered new exit (range 8) 6119 | -7/Factory | Identified exit to Factory 6120 | -7/Factory | Entered another Factory area 6120 | -6/Factory | Evolved 2 slots: Propulsion x1, Utility x1 6151 | -6/Factory | Repaired Carbon-fiber Leg 6192 | -6/Factory | Repaired Titanium Leg 6470 | -6/Factory | Garrison activated, responded to threat 6984 | -6/Factory | Sucked down chute 6984 | -6/Factory | Entered Waste 6999 | -6/Waste | EMP discharged 6999 | -6/Waste | System corruption reached 10% 7046 | -6/Waste | Spotted C-40 Crusher 7046 | -6/Waste | Spotted C-40 Crusher 7049 | -6/Waste | Spotted C-40 Crusher 7049 | -6/Waste | Spotted C-40 Crusher 7059 | -6/Waste | Spotted C-40 Crusher 7064 | -6/Waste | Spotted C-40 Crusher 7071 | -6/Waste | Crushed by Compactor (1 part destroyed, 1 dropped) 7087 | -6/Waste | Discovered new exit (range 10) 7091 | -6/Waste | Entered Factory 7128 | -6/Factory | Identified exit to DSF 7131 | -6/Factory | Entered DSF 7182 | -6/DSF | Wild Derelicts raided the area 7194 | -6/DSF | Additional patrols routed to DSF 7332 | -6/DSF | Sterilization system engaged 7352 | -6/DSF | Ambient heat levels rising (+10) 7367 | -6/DSF | Ambient heat levels rising (+10) 7382 | -6/DSF | Ambient heat levels rising (+10) 7397 | -6/DSF | Ambient heat levels rising (+10) 7398 | -6/DSF | Discovered new exit (range 14) 7412 | -6/DSF | Ambient heat levels rising (+10) 7424 | -6/DSF | Entered Factory 7424 | -5/Factory | Evolved 2 slots: Propulsion x1, Utility x1 7562 | -5/Factory | Build established: Hacker-Gladiator 7695 | -5/Factory | Discovered new exit (range 3) 7697 | -5/Factory | Identified exit to Factory 7752 | -5/Factory | Discovered exit to Factory (range 8) 8078 | -5/Factory | Cargo convoy interrupted 8084 | -5/Factory | Destroyed 7 combat bots 8089 | -5/Factory | System corruption reached 10% 8099 | -5/Factory | Released all parts (9) 8128 | -5/Factory | Core integrity fell below 50% 8142 | -5/Factory | Core integrity fell below 20% 8144 | -5/Factory | Discovered new exit (range 8) 8147 | -5/Factory | Entered Upper Caves 8149 | -5/Upper Caves | Attracted the attention of an 0b10 checkpoint 8177 | -5/Upper Caves | Lost 11 parts (1p6n4u) 8188 | -5/Upper Caves | Met a Warlord Commander 8189 | -5/Upper Caves | Learned location of Warlord (-4) 8190 | -5/Upper Caves | Warlord Commander delivered Encrypted Comm Array 8190 | -5/Upper Caves | Found Encrypted Comm Array 8201 | -5/Upper Caves | Encountered a Warlord checkpoint 8218 | -5/Upper Caves | Destroyed by Dirty Bomb Trap Last Messages --------------- units to engage us in outlying regions." World map updated: -4/Warlord. 08190_ ZI-6YB(g): "Take this and I'm confident we can do great things together." 08190_ Acquired Encrypted Comm Array. 08191_ ZI-6YB(g): "Keep it up and the more chaos you cause inside garrisons, the more forces we can redirect for attacks on primary facilities." 08192_ ZI-6YB(g): "To be clear, the most effective way to help us is by destroying RIF Installers and Garrison Relays, and generally compromising garrison interiors. Triggering DSF sterilization is also a great help." 08193_ ZI-6YB(g): "WARLORD FOREVER!" 08193_ ZI-6YB(g) slips back into the shadows. 08201_ TD-6XA(M): "WARLORD FOREVER!" 08218_ System corruption misinterpreted. 08218_ Triggered Dirty Bomb Trap. 08218_ An explosion rips through the floor. Map ----- +----------------------------------------------------+ | ?????????????????????????????????????????????????? | | ?????????????????????????????????????????????????? | | ?????????????????????????????????????????????????? | | ?????????????????????????????????????????????????? | | ?????????????????????????????????????????????????? | | ?????????????????????????????????????????????????? | | ?????????????????????????????????????????????????? | | ?????????????????????????????????????????????????? | | ?????????????????????????????????????????????????? | | ?????????????????????????????????????????????????? | | ?????????????????????????????????????????????????? | | ?????????????????????????????????????????????????? | | ?????????????????????????????#???????????????????? | | ????????????????????????????? ???????????????????? | | ????????????????????????????? ???????????????????? | | ????????????????##???????? ## ???????????????????? | | ???????????????## ????????? ????##?????????????? | | ???????????????# ????? ? ???# ???????#####??? | | ???????????? ### ???? ? #?# ????????# #??? | | ????????????? ??? ? ?????????# ?### | | ??????????????? ??? # ??????????# ?# | | ????????????????# ???? #??????????# #?? | | ?????????????????# #???? #??????????# #?? | | ???????????????????? ?### ##?????????# ##?# | | ??????????????????????# ## # ###??????## ### | | ??????????????????????# @ # # ##?????# | | ?????????????????????# # # ##????# | | ????????????????????# # ###### | | ???????????????????# | | ??????????????????# | | ?????????????????# ###### | | ?????????????????# ##????# | | ?????????????????## # ##?????# | | ??????????????????##### # #??????## | | ??????????????????????# # #???????## ### | | ??????????????????????# ?# ##????????# ##?# | | ??????????????????????# ?# #?????????# #??? | | ??????????????????????# ?## # #?????????# #??? | | ??????????????????????#???# ###?????????# ??? | | ??????????????????????????# #???????????## ?? | | ??????????????????????????# ?????????????### ? | | ??????????????????????????# ????????????????## | | ?????????????????????????? ??????????????????# | | ???????????????????????????????????????????????? | | ????????????????????????????????????????????????? | | ?????????????????????????????????????????????????? | | ?????????????????????????????????????????????????? | | ?????????????????????????????????????????????????? | | ?????????????????????????????????????????????????? | | ?????????????????????????????????????????????????? | +----------------------------------------------------+ Best States ------------- Heat Dissipation 64 Energy Generation 18 Energy Capacity 310 Matter Stores 300 Matter Capacity 300 Sight Range 16 Robot Scan Range 16 Terrain Scan Density 10 Armor Coverage 225 Resistance: KI 20 Propulsion Shielding 66 Melee Speed Boost 20 Evasion (%) 62 Melee Accuracy 12 Recoil Reduction 4 Offensive Hacking 30 Authchip Count 9 Item Schematics ----------------- Gatling Laser | -9/Storage | Hacked Plasma Cannon | -9/Storage | Hacked Cesium-ion Thruster | -6/Factory | Scanalyzed Hvy. Deuterium Engine | -6/Factory | Scanalyzed Lgt. Armored Exoskeleton | -6/Factory | Hacked Robot Schematics ------------------ None Fabricated ------------ Nothing Repaired ---------- Minigun | 43% | -9/Storage Carbon-fiber Leg | 9% | -6/Factory Titanium Leg | 28% | -6/Factory Alien Tech Used ----------------- None Achievements -------------- None Challenges ------------ None Game ------ Seed HardcellTripodProtection Manual? 0 Play Time 01:32:26 Cumulative 221.8 hours Start 2025.08.04 @ 17:21:13 End 2025.08.04 @ 19:00:14 Sessions 1 Manual Loads 0 Difficulty Rogue Special Mode None Game No. 157 Rogue 157 Adventurer 0 Explorer 0 Win Type - Total 2 Types 2/0/0/0/0/0/0/0/0/0 Lore% 66 Gallery% 64 Achievement% 55 Wizard Run 0 Options --------- Layout 1 ASCII 0 Keyboard 0 Movement Mouse Keybinds 0 Fullscreen 1 Font 32/SmallcapsGlow Map View 50x35 Zoom Use 0% Tactical HUD 1 Map Filters NONE Filters NONE Steam 1 RUN: e6587c9f-2aec-4f2e-8628-54a9c01e7554